bitfinex/quotes_BTCUSD_20251212
["timestamp","ask_amount","ask_price","bid_price","bid_amount"]
[1765533492974,0.00051657,92550.0,92549.0,0.25565897]
[1765533493205,0.00051657,92550.0,92549.0,0.22775117]
[1765533493761,0.00051657,92550.0,92549.0,0.25395248]
[1765533493966,0.00451657,92550.0,92549.0,0.25395248]
[1765533494348,0.00652981,92550.0,92549.0,0.25395248]
[1765533494808,0.00252981,92550.0,92549.0,0.25395248]
[1765533495186,0.00252981,92550.0,92549.0,0.25479881]
[1765533496053,0.00452981,92550.0,92549.0,0.25479881]
[1765533496225,0.00552981,92550.0,92549.0,0.25479881]
[1765533498467,0.00552981,92550.0,92549.0,0.02704764]
[1765533498649,0.01710131,92550.0,92547.0,0.2907]
[1765533498850,0.0042831,92550.0,92548.0,0.21610188]
[1765533499101,0.01080508,92549.0,92545.0,0.01080555]
[1765533499326,0.01080532,92547.0,92542.0,0.22692177]
[1765533499456,0.00076653,92547.0,92545.0,0.01080555]
[1765533500114,0.00076653,92547.0,92545.0,0.22691443]
[1765533500455,0.00076653,92547.0,92542.0,0.0108059]
[1765533500665,0.01080637,92538.0,92534.0,0.01080683]
[1765533500880,0.0115729,92538.0,92535.0,0.01080672]
[1765533501101,0.22770237,92538.0,92534.0,0.30150683]
[1765533501301,0.0115729,92538.0,92534.0,0.30150683]
[1765533501525,0.0115729,92538.0,92534.0,0.2907]
[1765533501526,0.01080648,92537.0,92534.0,0.2907]
[1765533501718,0.01157301,92537.0,92534.0,0.30150683]
[1765533501903,0.00076653,92537.0,92534.0,0.30150683]
[1765533502332,0.00076653,92537.0,92534.0,0.51764135]
[1765533502538,0.01080683,92534.0,92531.0,0.30150718]
[1765533502693,0.22770325,92537.0,92532.0,0.22694701]
[1765533502897,0.22770325,92537.0,92532.0,0.01080707]
[1765533503148,0.00076653,92537.0,92534.0,0.21613677]
[1765533503488,0.00176653,92537.0,92534.0,0.21613677]
[1765533503686,0.00076653,92537.0,92534.0,0.21613677]
[1765533504092,0.00176653,92537.0,92534.0,0.21613677]
[1765533504320,0.00176653,92537.0,92536.0,0.21613209]
[1765533504716,0.00340611,92537.0,92536.0,0.21613209]
[1765533505294,0.00240611,92537.0,92536.0,0.21613209]
[1765533505541,0.00163958,92537.0,92536.0,0.25926007]
[1765533505747,0.00263958,92537.0,92536.0,0.21613209]
[1765533505948,0.00163958,92537.0,92536.0,0.21613209]
[1765533506148,0.00263958,92537.0,92536.0,0.21613209]
[1765533506683,0.00263958,92537.0,92536.0,0.25755842]
[1765533506884,0.00263958,92537.0,92536.0,0.5913864]
[1765533508363,0.00163958,92537.0,92536.0,0.5913864]
[1765533508569,0.00163958,92537.0,92536.0,0.6384135]
[1765533508775,0.00263958,92537.0,92536.0,0.6384135]
[1765533509114,0.00263958,92537.0,92536.0,0.5913864]
[1765533513738,0.00263958,92537.0,92536.0,0.6300973]
[1765533515142,0.00263958,92537.0,92536.0,0.54638932]
[1765533515410,0.00263958,92537.0,92536.0,0.54825842]
[1765533515852,0.00263958,92537.0,92536.0,0.5913864]
[1765533517204,0.00263958,92537.0,92536.0,0.6300973]
[1765533517405,0.00263958,92537.0,92536.0,0.5913864]
[1765533518488,0.00163958,92537.0,92536.0,0.5913864]
[1765533519147,0.00163958,92537.0,92536.0,0.54925842]
[1765533519320,0.00163958,92537.0,92536.0,1.7238434]
[1765533519863,0.00163958,92537.0,92536.0,1.73972744]
[1765533520319,0.00163958,92537.0,92536.0,0.62535044]
[1765533520761,0.00163958,92537.0,92536.0,0.62435044]
[1765533520987,0.00163958,92537.0,92536.0,0.62935044]
[1765533521401,0.00163958,92537.0,92536.0,0.58622246]
[1765533521609,0.00163958,92537.0,92536.0,0.70663238]
[1765533521990,0.00163958,92537.0,92536.0,0.62935044]
[1765533522164,0.00163958,92537.0,92536.0,0.6134664]
[1765533523420,0.00163958,92537.0,92536.0,0.5963864]
[1765533523615,0.00163958,92537.0,92536.0,0.6134664]
[1765533524695,0.00163958,92537.0,92536.0,0.52975842]
[1765533524905,0.00163958,92537.0,92536.0,0.57033842]
[1765533526415,0.00163958,92537.0,92536.0,0.6134664]
[1765533526623,0.00163958,92537.0,92536.0,0.6104664]
[1765533526829,0.00163958,92537.0,92536.0,0.6084664]
[1765533527049,0.00163958,92537.0,92536.0,0.6124664]
[1765533527259,0.00163958,92537.0,92536.0,0.68974834]
[1765533527462,0.00163958,92537.0,92536.0,1.65848479]
[1765533527873,0.00163958,92537.0,92536.0,1.65948479]
[1765533528291,0.00163958,92537.0,92536.0,1.66148479]
[1765533528509,0.00163958,92537.0,92536.0,1.66048479]
[1765533528714,0.00032473,92537.0,92536.0,1.75702691]
[1765533529263,0.00032473,92537.0,92536.0,0.97488479]
[1765533529463,0.00032473,92537.0,92536.0,1.43988479]
[1765533530396,0.00032473,92537.0,92536.0,0.66348479]
[1765533530619,0.00032473,92537.0,92536.0,1.54178479]
[1765533530755,0.00032473,92537.0,92536.0,0.66348479]
[1765533531724,0.00032473,92537.0,92536.0,0.77228479]
[1765533532850,0.00032473,92537.0,92536.0,1.56378479]
[1765533533119,0.00032473,92537.0,92536.0,0.82198479]
[1765533533603,0.00032473,92537.0,92536.0,0.66348479]
[1765533534279,0.00032473,92537.0,92536.0,0.6134664]
[1765533535320,0.00032473,92537.0,92536.0,1.6134664]
[1765533535748,0.00032473,92537.0,92536.0,1.76002691]
[1765533536161,0.00032473,92537.0,92536.0,1.66348479]
[1765533538633,6.464e-05,92537.0,92536.0,1.66348479]
[1765533539310,6.464e-05,92537.0,92536.0,0.71012247]
[1765533539492,6.464e-05,92537.0,92536.0,1.6134664]
[1765533539707,6.464e-05,92537.0,92536.0,1.71012247]
[1765533540263,6.464e-05,92537.0,92536.0,1.6134664]
[1765533540492,6.464e-05,92537.0,92536.0,1.71012769]
[1765533541655,6.464e-05,92537.0,92536.0,1.17742769]
[1765533541862,6.464e-05,92537.0,92536.0,1.0807664]
[1765533542424,6.464e-05,92537.0,92536.0,0.6134664]
[1765533542632,6.464e-05,92537.0,92536.0,1.0706864]
[1765533543018,6.464e-05,92537.0,92536.0,0.94453842]
[1765533543217,6.464e-05,92537.0,92536.0,0.8892664]
[1765533543445,6.464e-05,92537.0,92536.0,0.8491664]
[1765533543648,6.464e-05,92537.0,92536.0,0.89918479]
[1765533543819,6.464e-05,92537.0,92536.0,0.99584608]
[1765533545182,6.464e-05,92537.0,92536.0,0.89918479]
[1765533545540,0.0004,92560.0,92559.0,0.04312798]
[1765533545662,0.0004,92580.0,92579.0,0.54985969]
[1765533545840,0.00051642,92580.0,92579.0,0.61975602]
[1765533546695,0.00051642,92580.0,92579.0,0.55212804]
[1765533546865,0.00051642,92580.0,92579.0,0.52465804]
[1765533547439,0.00051642,92580.0,92579.0,0.56486804]
[1765533547750,0.00051642,92580.0,92579.0,0.60799602]
[1765533547976,0.00051642,92580.0,92579.0,0.50757804]
[1765533548335,0.00051642,92580.0,92579.0,0.54619935]
[1765533548542,0.00051642,92580.0,92579.0,0.58640935]
[1765533548781,0.00051642,92580.0,92579.0,0.62953733]
[1765533549390,0.00351642,92580.0,92579.0,0.60503733]
[1765533549586,0.00251642,92580.0,92579.0,0.55070602]
[1765533549786,0.00351642,92580.0,92579.0,0.50757804]
[1765533550286,0.00151642,92580.0,92579.0,0.50757804]
[1765533550690,0.00151642,92580.0,92579.0,0.50673171]
[1765533551204,0.00275234,92580.0,92579.0,0.50673171]
[1765533551534,0.00175234,92580.0,92579.0,0.50673171]
[1765533552089,0.00275234,92580.0,92579.0,0.50673171]
[1765533552482,0.00375234,92580.0,92579.0,0.50673171]
[1765533557143,0.00451887,92580.0,92576.0,0.21603684]
[1765533557303,0.00328295,92580.0,92579.0,0.21603171]
[1765533557506,0.00328295,92580.0,92577.0,0.01080181]
[1765533557705,0.00328295,92580.0,92577.0,0.22683634]
[1765533557913,0.00328295,92580.0,92578.0,0.21603176]
[1765533558110,0.00228295,92580.0,92578.0,0.21603176]
[1765533558314,0.00128295,92580.0,92578.0,0.21603176]
[1765533558535,0.00228295,92580.0,92578.0,0.21603176]
[1765533558734,0.00328295,92580.0,92578.0,0.21603176]
[1765533558910,0.00228295,92580.0,92578.0,0.21603176]
[1765533559116,0.00128295,92580.0,92578.0,0.21603176]
[1765533559478,0.00328295,92580.0,92578.0,0.21603176]
[1765533561147,0.00328295,92580.0,92575.0,0.01080205]
[1765533561148,0.01080158,92579.0,92575.0,0.01080205]
[1765533561343,0.0108017,92578.0,92573.0,0.30150228]
[1765533561552,0.0108017,92578.0,92574.0,0.01080216]
[1765533561553,0.01080181,92577.0,92574.0,0.01080216]
[1765533561766,0.0108017,92578.0,92575.0,0.01080205]
[1765533561970,0.00228295,92580.0,92577.0,0.01080181]
[1765533562176,0.00128295,92580.0,92578.0,0.21603404]
[1765533562375,0.001,92578.0,92577.0,0.01080181]
[1765533562817,0.00128295,92580.0,92577.0,0.22683612]
[1765533563244,0.00117846,92578.0,92577.0,0.22683612]
[1765533564700,0.00317846,92578.0,92577.0,0.22683612]
[1765533564909,0.00417846,92578.0,92575.0,0.01080205]
[1765533565118,0.003,92578.0,92575.0,0.01080205]
[1765533565321,0.001121,92576.0,92575.0,0.22684093]
[1765533567781,0.003121,92576.0,92575.0,0.22684093]
[1765533571109,0.003121,92576.0,92575.0,0.01080205]
[1765533571312,0.003121,92576.0,92571.0,0.03862131]
[1765533571313,0.003121,92576.0,92571.0,0.04942382]
[1765533571511,0.003121,92576.0,92572.0,0.0108024]
[1765533571512,0.002,92576.0,92572.0,0.0108024]
[1765533571624,0.002,92576.0,92573.0,0.22684627]
[1765533571825,0.002,92576.0,92574.0,0.21604125]
[1765533572856,0.001,92576.0,92574.0,0.21604125]
[1765533573074,0.001,92576.0,92573.0,0.01080228]
[1765533573287,0.02700425,92578.0,92575.0,0.22684125]
[1765533573557,0.001,92576.0,92575.0,0.01080205]
[1765533573775,0.03780595,92578.0,92575.0,0.01080205]
[1765533573978,0.001,92576.0,92575.0,0.01080205]
[1765533574161,0.02900483,92576.0,92575.0,0.01080205]
[1765533574360,0.02700483,92576.0,92575.0,0.01080205]
[1765533574763,0.02900483,92576.0,92573.0,0.01080228]
[1765533574984,0.02900483,92576.0,92573.0,0.22684579]
[1765533575192,0.02900483,92576.0,92575.0,0.21604104]
[1765533575348,0.002,92576.0,92575.0,0.21604104]
[1765533576013,0.02800483,92576.0,92575.0,0.21604104]
[1765533576225,0.02700396,92579.0,92576.0,0.01080193]
[1765533576838,0.03780554,92579.0,92576.0,0.01080193]
[1765533577267,0.00114973,92577.0,92576.0,0.01080193]
[1765533577464,0.02815427,92577.0,92576.0,0.01080193]
[1765533578467,0.00114973,92577.0,92576.0,0.01080193]
[1765533578668,0.02815427,92577.0,92576.0,0.01080193]
[1765533578902,0.02815427,92577.0,92573.0,0.2654689]
[1765533579022,0.02700454,92577.0,92574.0,0.01080216]
[1765533579220,0.02700454,92577.0,92575.0,0.21603914]
[1765533579427,0.001121,92576.0,92575.0,0.21603914]
[1765533580558,0.001121,92576.0,92574.0,0.22684353]
[1765533580774,0.001,92576.0,92574.0,0.22684353]
[1765533580960,0.001,92576.0,92574.0,0.01080216]
[1765533581167,0.002,92576.0,92574.0,0.01080216]
[1765533581384,0.002,92576.0,92573.0,0.04942359]
[1765533581585,0.02700513,92575.0,92574.0,0.21604338]
[1765533581895,0.02700513,92575.0,92573.0,0.04942359]
[1765533582162,0.02700513,92575.0,92574.0,0.21604338]
[1765533582481,0.02900483,92576.0,92574.0,0.21604338]
[1765533582829,0.02900483,92576.0,92573.0,0.04942359]
[1765533582977,0.02800483,92576.0,92573.0,0.26546726]
[1765533583200,0.02800483,92576.0,92573.0,0.04942359]
[1765533583428,0.001,92575.0,92574.0,0.03862131]
[1765533583631,0.03548308,92575.0,92574.0,0.03862131]
[1765533583832,0.21606438,92565.0,92562.0,0.03862131]
[1765533584079,0.01080333,92564.0,92561.0,0.03862131]
[1765533584483,0.21606438,92565.0,92561.0,0.01080368]
[1765533584484,0.22686759,92565.0,92561.0,0.01080368]
[1765533584711,0.22686759,92565.0,92561.0,0.04942499]
[1765533584837,0.22686759,92565.0,92561.0,0.01080368]
[1765533585037,0.002,92564.0,92561.0,0.01080368]
[1765533585233,0.01280333,92564.0,92561.0,0.01080368]
[1765533585451,0.01280333,92564.0,92560.0,0.0108038]
[1765533585452,0.01080345,92563.0,92560.0,0.0108038]
[1765533585685,0.01080321,92565.0,92561.0,0.2268774]
[1765533585889,0.01180321,92565.0,92561.0,0.2268774]
[1765533586270,0.0007187,92562.0,92560.0,0.0108038]
[1765533586491,0.01080345,92563.0,92559.0,0.04942522]
[1765533586694,0.01180345,92563.0,92559.0,0.01080391]
[1765533586843,0.001,92563.0,92560.0,0.0108038]
[1765533587054,0.22886933,92565.0,92560.0,0.0108038]
[1765533587410,0.001,92562.0,92560.0,0.0108038]
[1765533588485,0.001,92562.0,92557.0,0.21608133]
[1765533588486,0.22687985,92560.0,92557.0,0.03862131]
[1765533588698,0.22687985,92560.0,92556.0,0.01080426]
[1765533588997,0.22687985,92560.0,92555.0,0.03862131]
[1765533589199,0.2268845,92559.0,92555.0,0.03862131]
[1765533589544,0.2268845,92559.0,92554.0,0.26551355]
[1765533589545,0.01080403,92558.0,92554.0,0.26551355]
[1765533589722,0.01080403,92558.0,92554.0,0.04942581]
[1765533590048,0.01080391,92559.0,92556.0,0.01080426]
[1765533590195,0.01080368,92561.0,92557.0,0.01080415]
[1765533590367,0.001,92559.0,92557.0,0.22688721]
[1765533590835,0.01080391,92559.0,92556.0,0.01080426]
[1765533591023,0.001,92558.0,92556.0,0.01080426]
[1765533591203,0.01080368,92561.0,92557.0,0.22688721]
[1765533591400,0.01080368,92561.0,92556.0,0.01080426]
[1765533591401,0.0108038,92560.0,92556.0,0.01080426]
[1765533591599,0.001,92559.0,92556.0,0.01080426]
[1765533591990,0.22788321,92559.0,92555.0,0.01080438]
[1765533592192,0.01080415,92557.0,92554.0,0.04942581]
[1765533592416,0.21608773,92555.0,92552.0,0.03862131]
[1765533592595,0.21608773,92555.0,92551.0,0.03862131]
[1765533592798,0.0108045,92554.0,92551.0,0.04942616]
[1765533593112,0.01080438,92555.0,92551.0,0.04942616]
[1765533593628,0.01080438,92555.0,92552.0,0.01080473]
[1765533595309,0.21607271,92562.0,92558.0,0.01080403]
[1765533595921,0.21607271,92562.0,92555.0,0.21608712]
[1765533596123,0.22688004,92560.0,92556.0,0.01080426]
[1765533596523,0.0108038,92560.0,92557.0,0.01080415]
[1765533597225,0.01704,92565.0,92564.0,0.01080333]
[1765533599683,0.02104,92565.0,92563.0,0.01080345]
[1765533600064,0.00077618,92564.0,92563.0,0.01080345]
[1765533600225,0.01080356,92562.0,92555.0,0.01080438]
[1765533600429,0.01080345,92563.0,92559.0,0.01080391]
[1765533600658,0.01080345,92563.0,92555.0,0.01080438]
[1765533600659,0.0108038,92560.0,92556.0,0.22688838]
[1765533600894,0.21608719,92556.0,92552.0,0.01080473]
[1765533601091,0.21608719,92556.0,92549.0,0.21610129]
[1765533601092,0.21610641,92547.0,92546.0,0.03862131]
[1765533601270,0.01080625,92539.0,92536.0,0.03862131]
[1765533601469,0.01080625,92539.0,92526.0,0.04942908]
[1765533601470,0.0108073,92530.0,92526.0,0.04942908]
[1765533601670,0.0108073,92530.0,92529.0,0.02704764]
[1765533601873,0.21614377,92531.0,92529.0,0.02704764]
[1765533602093,0.22694115,92535.0,92529.0,0.02704764]
[1765533602335,0.01080695,92533.0,92529.0,0.03797163]
[1765533602505,0.22693202,92539.0,92530.0,0.0108073]
[1765533602736,0.21612933,92538.0,92531.0,0.21614377]
[1765533602908,0.21612933,92538.0,92530.0,0.0108073]
[1765533602909,0.01080695,92533.0,92530.0,0.0108073]
[1765533603204,0.0108066,92536.0,92532.0,0.01080707]
[1765533603407,0.01704,92537.0,92533.0,0.01080695]
[1765533603408,0.001,92535.0,92533.0,0.01080695]
[1765533603602,0.22693948,92536.0,92531.0,0.01080718]
[1765533603830,0.01080683,92534.0,92531.0,0.01080718]
[1765533604392,0.2161439,92531.0,92529.0,0.00011657]
[1765533604593,0.01080707,92532.0,92529.0,0.00011657]
[1765533605010,0.21614377,92531.0,92529.0,0.00011657]
[1765533605589,0.01080707,92532.0,92529.0,0.00011657]
[1765533606127,0.001,92531.0,92529.0,0.00011657]
[1765533606473,0.21614579,92531.0,92529.0,0.00011657]
[1765533606673,0.0125736,92532.0,92529.0,0.00011657]
[1765533606899,0.00176653,92532.0,92529.0,0.01092399]
[1765533607119,0.00076653,92532.0,92529.0,0.01092399]
[1765533607279,0.001,92531.0,92529.0,0.01092399]
[1765533607699,0.001,92531.0,92529.0,0.00011657]
[1765533608556,0.21691238,92531.0,92529.0,0.00011657]
[1765533608762,0.00076653,92531.0,92529.0,0.00011657]
[1765533608975,0.00076653,92531.0,92529.0,0.21626462]
[1765533609192,0.00076653,92531.0,92529.0,0.00011657]
[1765533609390,0.00176653,92531.0,92529.0,0.00011657]
[1765533609986,0.00176653,92531.0,92530.0,0.02704764]
[1765533610188,0.001,92531.0,92530.0,0.0761783]
[1765533610951,0.001,92531.0,92530.0,0.11930628]
[1765533611138,0.001,92531.0,92530.0,0.0761783]
[1765533611338,0.002,92531.0,92530.0,0.0761783]
[1765533611542,0.001,92531.0,92530.0,0.0761783]
[1765533611953,0.02784567,92544.0,92541.0,0.01080602]
[1765533612114,0.01704,92544.0,92541.0,0.01080602]
[1765533612294,0.01704,92544.0,92541.0,0.2269243]
[1765533613284,0.01704,92544.0,92542.0,0.21611598]
[1765533613528,0.00023003,92545.0,92544.0,0.21611341]
[1765533613727,0.00023003,92545.0,92544.0,0.25658974]
[1765533613874,0.00023003,92545.0,92544.0,0.29971772]
[1765533614257,0.00023003,92545.0,92544.0,0.59041772]
[1765533614464,0.00023003,92545.0,92544.0,0.58591105]
[1765533614670,0.00023003,92545.0,92544.0,0.61295869]
[1765533615072,0.00123003,92545.0,92544.0,0.61295869]
[1765533615267,0.00123003,92545.0,92544.0,0.57433738]
[1765533615718,0.00323003,92545.0,92544.0,0.57433738]
[1765533624908,0.00323003,92545.0,92544.0,0.53470738]
[1765533625239,0.00323003,92545.0,92544.0,0.02789397]
[1765533625630,0.00323003,92545.0,92543.0,0.50681388]
[1765533625631,0.21612223,92541.0,92538.0,0.03861498]
[1765533625825,0.21612223,92541.0,92531.0,0.03861498]
[1765533625826,0.01080683,92534.0,92531.0,0.03861498]
[1765533626026,0.01080672,92535.0,92531.0,0.01080718]
[1765533626248,0.01080683,92534.0,92531.0,0.01080718]
[1765533626428,0.22770957,92535.0,92531.0,0.01080718]
[1765533626429,0.00076653,92535.0,92532.0,0.01080707]
[1765533627096,0.01157325,92535.0,92531.0,0.22695075]
[1765533627265,0.01157325,92535.0,92531.0,0.01080718]
[1765533627460,0.00076653,92535.0,92532.0,0.01080707]
[1765533628056,0.22770957,92535.0,92530.0,0.0108073]
[1765533628237,0.01080683,92534.0,92531.0,0.01080718]
[1765533628590,0.01157336,92534.0,92531.0,0.22695057]
[1765533628782,0.01080695,92533.0,92530.0,0.0108073]
[1765533628960,0.01157348,92533.0,92530.0,0.0108073]
[1765533629166,0.21614611,92530.0,92529.0,0.00011657]
[1765533629568,0.04654487,92532.0,92529.0,0.00011657]
[1765533629768,0.21614585,92531.0,92529.0,0.00011657]
[1765533629967,0.01080707,92532.0,92529.0,0.00011657]
[1765533630550,0.21614611,92531.0,92529.0,0.00011657]
[1765533630953,0.21714611,92531.0,92529.0,0.00011657]
[1765533631659,0.21614611,92531.0,92529.0,0.00011657]
[1765533632562,0.23363622,92531.0,92529.0,0.00011657]
[1765533632776,0.23463622,92531.0,92529.0,0.00011657]
[1765533632951,0.044504,92530.0,92529.0,0.00011657]
[1765533633357,0.21614611,92530.0,92529.0,0.00011657]
[1765533634227,0.21914611,92530.0,92529.0,0.00011657]
[1765533634898,0.23622611,92530.0,92529.0,0.00011657]
[1765533636411,0.003,92530.0,92529.0,0.00011657]
[1765533636613,0.003,92530.0,92529.0,0.26384001]
[1765533636813,0.003,92530.0,92529.0,0.29826933]
[1765533637288,0.002,92530.0,92529.0,0.29826933]
[1765533637490,0.01080567,92544.0,92529.0,0.29826933]
[1765533637491,0.01080567,92544.0,92541.0,0.01080602]
[1765533637730,0.22692019,92544.0,92542.0,0.02704764]
[1765533637878,0.21611575,92543.0,92542.0,0.02704764]
[1765533639025,0.22714719,92545.0,92542.0,0.02704764]
[1765533639545,0.21611376,92544.0,92542.0,0.02704764]
[1765533639766,0.001,92543.0,92542.0,0.02704764]
[1765533640386,0.21611376,92544.0,92542.0,0.02704764]
[1765533640560,0.21611716,92543.0,92540.0,0.22692849]
[1765533640721,0.28710493,92542.0,92538.0,0.22693265]
[1765533640928,0.01080625,92539.0,92534.0,0.56608891]
[1765533641123,0.00076653,92539.0,92535.0,0.22694098]
[1765533641348,0.00076653,92539.0,92536.0,0.21613209]
[1765533641349,0.21689182,92539.0,92536.0,0.21613209]
[1765533641553,0.00076653,92539.0,92537.0,0.21612937]
[1765533641753,0.28981929,92539.0,92536.0,0.21613209]
[1765533641960,0.07369404,92539.0,92536.0,0.21613209]
[1765533642135,0.2898192,92539.0,92536.0,0.21613209]
[1765533642340,0.03173767,92538.0,92529.0,0.01092399]
[1765533642556,0.21613912,92533.0,92530.0,0.21614465]
[1765533642735,0.22694607,92533.0,92530.0,0.21614465]
[1765533643341,0.01080683,92534.0,92531.0,0.21614154]
[1765533643599,0.22694271,92535.0,92532.0,0.21614088]
[1765533644100,0.0108066,92536.0,92532.0,0.22694807]
[1765533644782,0.002,92535.0,92532.0,0.22694807]
[1765533644981,0.21613684,92534.0,92532.0,0.22694807]
[1765533645406,0.2161391,92533.0,92530.0,0.22795257]
[1765533645529,0.22694367,92534.0,92530.0,0.22795257]
[1765533645880,0.22694367,92534.0,92531.0,0.21614335]
[1765533646022,0.21614156,92532.0,92529.0,0.00011657]
[1765533646221,0.01080695,92533.0,92530.0,0.21614611]
[1765533646479,0.01280683,92534.0,92530.0,0.0108073]
[1765533646656,0.01080707,92532.0,92529.0,0.22707067]
[1765533646856,0.01080707,92532.0,92530.0,0.21614568]
[1765533647266,0.01080707,92532.0,92529.0,0.22707067]
[1765533647462,0.22694864,92532.0,92529.0,0.00011657]
[1765533648056,0.21614464,92531.0,92529.0,0.00011657]
[1765533648652,0.21365302,92530.0,92529.0,0.00011657]
[1765533649969,0.21465302,92530.0,92529.0,0.00011657]
[1765533650191,0.21665302,92530.0,92529.0,0.00011657]
[1765533650425,0.003,92530.0,92529.0,0.00011657]
[1765533650900,0.003,92530.0,92529.0,0.21626502]
[1765533660468,0.003,92530.0,92529.0,0.00011657]
[1765533661076,0.003,92530.0,92529.0,0.21626502]
[1765533661985,0.003,92530.0,92529.0,0.00011657]
[1765533662186,0.003,92530.0,92529.0,0.21626502]
[1765533662595,0.26762344,92530.0,92529.0,0.00011657]
[1765533663004,0.003,92530.0,92529.0,0.21626502]
[1765533664926,0.21613724,92534.0,92530.0,0.22695244]
[1765533665129,0.22694455,92534.0,92531.0,0.22695037]
[1765533665333,0.22694754,92533.0,92529.0,0.21626502]
[1765533665516,0.21614372,92532.0,92529.0,0.00011657]
[1765533665923,0.21614507,92531.0,92529.0,0.00011657]
[1765533666127,0.21614611,92530.0,92529.0,0.00011657]
[1765533666549,0.26065011,92530.0,92529.0,0.00011657]
[1765533666755,0.21614611,92530.0,92529.0,0.00011657]
[1765533667206,0.233024,92530.0,92529.0,0.00011657]
[1765533668756,0.234024,92530.0,92529.0,0.00011657]
[1765533669205,0.236024,92530.0,92529.0,0.00011657]
[1765533669422,0.0553106,92536.0,92529.0,0.00011657]
[1765533669423,0.02906508,92567.0,92564.0,0.01080333]
[1765533669594,0.0004,92580.0,92577.0,0.01080181]
[1765533669793,0.0004,92580.0,92579.0,0.21603171]
[1765533670249,0.01679,92580.0,92579.0,0.21603171]
[1765533670469,0.01679,92580.0,92578.0,0.21603404]
[1765533670887,0.24362123,92580.0,92577.0,0.2168819]
[1765533671103,0.0108017,92578.0,92574.0,0.01080216]
[1765533671407,0.22683603,92578.0,92574.0,0.01080216]
[1765533671579,0.22683843,92577.0,92572.0,0.0108024]
[1765533671798,0.00076653,92577.0,92573.0,0.01080228]
[1765533672005,0.0208,92576.0,92574.0,0.21604285]
[1765533672429,0.01639,92575.0,92574.0,0.21604285]
[1765533672608,0.00076653,92577.0,92576.0,0.21603871]
[1765533673966,0.00276653,92577.0,92576.0,0.21603871]
[1765533674197,0.00176653,92577.0,92576.0,0.21603871]
[1765533674520,0.002,92577.0,92576.0,0.21603871]
[1765533675094,0.004,92577.0,92576.0,0.21603871]
[1765533675755,0.004,92577.0,92576.0,0.29913302]
[1765533676806,0.002,92577.0,92576.0,0.29913302]
[1765533677171,0.003,92577.0,92576.0,0.29913302]
[1765533677397,0.001,92577.0,92576.0,0.29913302]
[1765533677576,0.001,92577.0,92576.0,0.25600504]
[1765533678053,0.002,92577.0,92576.0,0.23307504]
[1765533678273,0.001,92577.0,92576.0,0.23307504]
[1765533678450,0.002,92577.0,92576.0,0.23307504]
[1765533679152,0.002,92577.0,92576.0,0.21688504]
[1765533679568,0.002,92577.0,92576.0,0.23275504]
[1765533679772,0.002,92577.0,92576.0,0.25539504]
[1765533680665,0.00291974,92577.0,92576.0,0.26579504]
[1765533680891,0.00291974,92577.0,92576.0,0.24315504]
[1765533681117,0.00291974,92577.0,92576.0,0.22728504]
[1765533686629,0.00291974,92577.0,92576.0,0.21603871]
[1765533686833,0.00291974,92577.0,92576.0,0.24308635]
[1765533687803,0.01880974,92577.0,92576.0,0.24308635]
[1765533688951,0.03957974,92577.0,92576.0,0.21603871]
[1765533689155,0.01880974,92577.0,92576.0,0.21603871]
[1765533689512,0.00291974,92577.0,92576.0,0.21603871]
[1765533689719,0.00291974,92577.0,92576.0,0.24308635]
[1765533690124,0.00291974,92577.0,92576.0,0.62088978]
[1765533690310,0.00291974,92577.0,92576.0,0.61699066]
[1765533692433,0.01038,92610.0,92579.0,0.02789]
[1765533692649,0.248,92623.0,92576.0,0.4011236]
[1765533692650,0.01079668,92621.0,92616.0,0.01079727]
[1765533692879,0.02117738,92615.0,92607.0,0.22676449]
[1765533693060,0.02117738,92615.0,92609.0,0.01079808]
[1765533693061,0.01114653,92615.0,92609.0,0.01079808]
[1765533693275,0.01114653,92615.0,92608.0,0.0107982]
[1765533693276,0.04776375,92614.0,92608.0,0.0107982]
[1765533693444,0.02077,92614.0,92612.0,0.21595312]
[1765533693626,0.01114653,92615.0,92614.0,0.21595007]
[1765533694024,0.02703653,92615.0,92614.0,0.21595007]
[1765533694368,0.02703653,92615.0,92614.0,0.02789397]
[1765533694369,0.002,92615.0,92614.0,0.02789397]
[1765533695549,0.01038,92618.0,92614.0,0.02789397]
[1765533695750,0.01038,92618.0,92617.0,0.21594307]
[1765533696951,0.03196563,92630.0,92627.0,0.01079598]
[1765533697153,0.01708,92629.0,92627.0,0.01079598]
[1765533697356,0.01589,92628.0,92626.0,0.0107961]
[1765533697579,0.01589,92627.0,92625.0,0.01079622]
[1765533697783,0.01589,92626.0,92625.0,0.22672001]
[1765533697999,0.01729737,92626.0,92625.0,0.22672001]
[1765533698202,0.03806737,92626.0,92625.0,0.22672001]
[1765533699317,0.00140737,92626.0,92625.0,0.22672001]
[1765533699525,0.01848737,92626.0,92625.0,0.22672001]
[1765533699699,0.00140737,92626.0,92625.0,0.01079622]
[1765533699899,0.01729737,92626.0,92625.0,0.01079622]
[1765533700108,0.01929737,92626.0,92625.0,0.01079622]
[1765533700629,0.02229737,92626.0,92625.0,0.01079622]
[1765533701133,0.04306737,92626.0,92623.0,0.01079645]
[1765533701369,0.01079657,92622.0,92616.0,0.56478622]
[1765533701489,0.01079657,92622.0,92610.0,0.55398895]
[1765533701490,0.01589,92617.0,92604.0,0.02879798]
[1765533701716,0.02627,92605.0,92602.0,0.0107989]
[1765533701898,0.01079901,92601.0,92595.0,0.55398895]
[1765533702105,0.01079983,92594.0,92591.0,0.80959055]
[1765533702309,0.01589,92595.0,92592.0,0.01080006]
[1765533702513,0.01079948,92597.0,92594.0,0.01079983]
[1765533702761,0.01079936,92598.0,92595.0,0.01079971]
[1765533702975,0.01708,92601.0,92598.0,0.2267854]
[1765533703114,0.01708,92601.0,92599.0,0.21598479]
[1765533703313,0.01708,92601.0,92600.0,0.21598272]
[1765533705804,0.03297,92601.0,92600.0,0.21598272]
[1765533706026,0.03297,92601.0,92599.0,0.21598479]
[1765533706262,0.01589,92600.0,92598.0,0.22678663]
[1765533706950,0.01589,92599.0,92598.0,0.01079936]
[1765533707192,0.01589,92599.0,92598.0,0.22678673]
[1765533707320,0.01652207,92599.0,92598.0,0.22678673]
[1765533707963,0.01652207,92599.0,92598.0,0.21598738]
[1765533708177,0.01652207,92599.0,92597.0,0.02704764]
[1765533708323,0.23187592,92599.0,92594.0,0.2159945]
[1765533708528,0.01589,92595.0,92591.0,0.55398895]
[1765533708874,0.22679745,92594.0,92591.0,0.01080018]
[1765533709081,0.21600371,92591.0,92590.0,0.2907]
[1765533709304,0.23189371,92591.0,92590.0,0.2907]
[1765533709496,0.25266371,92591.0,92590.0,0.2907]
[1765533709878,0.25266371,92591.0,92588.0,0.30150053]
[1765533710079,0.02077,92590.0,92588.0,0.2907]
[1765533710287,0.01080065,92587.0,92584.0,0.010801]
[1765533710451,0.010801,92584.0,92581.0,0.02879798]
[1765533710656,0.010801,92584.0,92581.0,0.01080135]